[Event "Titled Tuesday Blitz April 11 Late 2023"]
[White "Zarnicki, Pablo"]
[Black "Weetik, Vjacheslav"]
[WhiteFideId "100137"]
[BlackFideId "4153472"]
[WhiteElo "2468"]
[BlackElo "2469"]
[Result "0-1"]
[Round "11"]
[TimeControl "180+2"]
[Date "2023.04.11"]
[WhiteClock "0:00:10"]
[BlackClock "0:00:08"]

1. e4 {[%clk 0:03:00]}  c5 {[%clk 0:03:00]} 2. Nf3 {[%clk 0:03:00]}  Nc6 {[%clk 0:03:00]} 3. Bb5 {[%clk 0:03:00]}  g6 {[%clk 0:03:00]} 4. O-O {[%clk 0:03:00]}  Bg7 {[%clk 0:03:00]} 5. c3 {[%clk 0:03:00]}  Nf6 {[%clk 0:03:00]} 6. Qe2 {[%clk 0:03:01]}  O-O {[%clk 0:03:00]} 7. Rd1 {[%clk 0:03:01]}  Qb6 {[%clk 0:02:54]} 8. h3 {[%clk 0:02:55]}  Nxe4 {[%clk 0:02:37]} 9. Na3 {[%clk 0:02:40]}  d5 {[%clk 0:02:30]} 10. d3 {[%clk 0:02:28]}  Nd6 {[%clk 0:02:30]} 11. Bxc6 {[%clk 0:02:26]}  Qxc6 {[%clk 0:02:30]} 12. Qxe7 {[%clk 0:02:24]}  Re8 {[%clk 0:02:19]} 13. Qh4 {[%clk 0:02:08]}  h6 {[%clk 0:01:59]} 14. Bd2 {[%clk 0:01:53]}  g5 {[%clk 0:01:54]} 15. Qg3 {[%clk 0:01:43]}  Bf5 {[%clk 0:01:46]} 16. Nh2 {[%clk 0:01:38]}  Bg6 {[%clk 0:01:30]} 17. Re1 {[%clk 0:01:27]}  c4 {[%clk 0:01:25]} 18. Nc2 {[%clk 0:01:03]}  cxd3 {[%clk 0:01:05]} 19. Nb4 {[%clk 0:01:02]}  Qd7 {[%clk 0:01:05]} 20. Qg4 {[%clk 0:00:30]}  Bf5 {[%clk 0:00:51]} 21. Qf3 {[%clk 0:00:27]}  Nc4 {[%clk 0:00:47]} 22. Be3 {[%clk 0:00:14]}  Be4 {[%clk 0:00:42]} 23. Qh5 {[%clk 0:00:14]}  a5 {[%clk 0:00:39]} 24. Ng4 {[%clk 0:00:11]}  Re6 {[%clk 0:00:31]} 25. Nxd3 {[%clk 0:00:09]}  Bxd3 {[%clk 0:00:32]} 26. Rad1 {[%clk 0:00:09]}  Bf5 {[%clk 0:00:22]} 27. Bd4 {[%clk 0:00:09]}  Bxg4 {[%clk 0:00:21]} 28. hxg4 {[%clk 0:00:09]}  Rxe1+ {[%clk 0:00:19]} 29. Rxe1 {[%clk 0:00:10]}  Re8 {[%clk 0:00:19]} 30. Rd1 {[%clk 0:00:09]}  Qe6 {[%clk 0:00:16]} 31. Bxg7 {[%clk 0:00:09]}  Kxg7 {[%clk 0:00:17]} 32. b3 {[%clk 0:00:08]}  Ne5 {[%clk 0:00:13]} 33. Qh3 {[%clk 0:00:07]}  Qxg4 {[%clk 0:00:12]} 34. Qxg4 {[%clk 0:00:03]}  Nxg4 {[%clk 0:00:12]} 35. f3 {[%clk 0:00:04]}  Nf6 {[%clk 0:00:12]} 36. Kf2 {[%clk 0:00:03]}  Rc8 {[%clk 0:00:12]} 37. Rd2 {[%clk 0:00:04]}  Rxc3 {[%clk 0:00:12]} 38. Rd4 {[%clk 0:00:04]}  Rc2+ {[%clk 0:00:12]} 39. Kg3 {[%clk 0:00:04]}  Rxa2 {[%clk 0:00:13]} 40. Rd3 {[%clk 0:00:05]}  b5 {[%clk 0:00:13]} 41. Rc3 {[%clk 0:00:04]}  a4 {[%clk 0:00:13]} 42. Rd3 {[%clk 0:00:05]}  a3 {[%clk 0:00:13]} 43. b4 {[%clk 0:00:06]}  Ra1 {[%clk 0:00:13]} 44. Rb3 {[%clk 0:00:06]}  Ne8 {[%clk 0:00:11]} 45. Kg4 {[%clk 0:00:05]}  Nd6 {[%clk 0:00:12]} 46. f4 {[%clk 0:00:06]}  gxf4 {[%clk 0:00:12]} 47. g3 {[%clk 0:00:05]}  fxg3 {[%clk 0:00:10]} 48. Rxg3 {[%clk 0:00:05]}  Nc4 {[%clk 0:00:09]} 49. Kh5+ {[%clk 0:00:06]}  Kf6 {[%clk 0:00:10]} 50. Rf3+ {[%clk 0:00:06]}  Ke6 {[%clk 0:00:10]} 51. Rf2 {[%clk 0:00:05]}  Rh1+ {[%clk 0:00:08]} 52. Kg4 {[%clk 0:00:05]}  Rb1 {[%clk 0:00:08]} 53. Re2+ {[%clk 0:00:05]}  Kd6 {[%clk 0:00:08]} 54. Kf5 {[%clk 0:00:05]}  Rb2 {[%clk 0:00:08]} 55. Re8 {[%clk 0:00:05]}  a2 {[%clk 0:00:07]} 56. Ra8 {[%clk 0:00:06]}  Nb6 {[%clk 0:00:07]} 57. Ra6 {[%clk 0:00:06]}  Kc7 {[%clk 0:00:07]} 58. Ra7+ {[%clk 0:00:06]}  Kc6 {[%clk 0:00:08]} 59. Ra6 {[%clk 0:00:07]}  Kb7 {[%clk 0:00:08]} 60. Ra5 {[%clk 0:00:06]}  Na4 {[%clk 0:00:09]} 61. Rxb5+ {[%clk 0:00:07]}  Kc6 {[%clk 0:00:09]} 62. Ra5 {[%clk 0:00:08]}  a1=Q {[%clk 0:00:09]} 63. b5+ {[%clk 0:00:08]}  Kb6 {[%clk 0:00:09]} 64. Ra6+ {[%clk 0:00:09]}  Kxb5 {[%clk 0:00:09]} 65. Rxh6 {[%clk 0:00:09]}  Qf1+ {[%clk 0:00:08]} 66. Ke5 {[%clk 0:00:09]}  Re2+ {[%clk 0:00:08]} 67. Kd6 {[%clk 0:00:09]}  Qf4+ {[%clk 0:00:08]} 68. Kd7 {[%clk 0:00:09]}  Qxh6 {[%clk 0:00:08]} 69. Kc8 {[%clk 0:00:10]}  Qc6+ {[%clk 0:00:07]} 70. Kb8 {[%clk 0:00:10]}  Re8+ {[%clk 0:00:08]} 71. Ka7 {[%clk 0:00:10]}  Ra8# {[%clk 0:00:08]} 0-1


[Site "https://www.chess.com"]

[Event "Titled Tuesday Blitz April 11 Late 2023"]
[White "Manelyuk, Daniil"]
[Black "Duda, Jan-Krzysztof"]
[WhiteFideId "44173920"]
[BlackFideId "1170546"]
[WhiteElo "2259"]
[BlackElo "2790"]
[Result "0-1"]
[Round "11"]
[TimeControl "180+2"]
[Date "2023.04.11"]
[WhiteClock "0:00:09"]
[BlackClock "0:00:13"]

1. e4 {[%clk 0:02:49]}  c5 {[%clk 0:03:00]} 2. Nf3 {[%clk 0:02:49]}  d6 {[%clk 0:03:00]} 3. d4 {[%clk 0:02:49]}  cxd4 {[%clk 0:03:01]} 4. Nxd4 {[%clk 0:02:50]}  Nf6 {[%clk 0:03:02]} 5. Nc3 {[%clk 0:02:50]}  a6 {[%clk 0:03:02]} 6. f3 {[%clk 0:02:50]}  e5 {[%clk 0:03:00]} 7. Nb3 {[%clk 0:02:48]}  Be7 {[%clk 0:03:00]} 8. Be3 {[%clk 0:02:49]}  Be6 {[%clk 0:03:00]} 9. Qd2 {[%clk 0:02:49]}  h5 {[%clk 0:02:57]} 10. Be2 {[%clk 0:02:47]}  Nbd7 {[%clk 0:02:55]} 11. Nd5 {[%clk 0:02:48]}  Nxd5 {[%clk 0:02:55]} 12. exd5 {[%clk 0:02:49]}  Bf5 {[%clk 0:02:55]} 13. Na5 {[%clk 0:02:44]}  Qc7 {[%clk 0:02:52]} 14. c4 {[%clk 0:02:44]}  Bh4+ {[%clk 0:02:47]} 15. g3 {[%clk 0:02:41]}  Bf6 {[%clk 0:02:48]} 16. O-O {[%clk 0:02:38]}  h4 {[%clk 0:02:33]} 17. g4 {[%clk 0:02:30]}  Bg6 {[%clk 0:02:33]} 18. Rac1 {[%clk 0:02:27]}  b6 {[%clk 0:01:51]} 19. Nc6 {[%clk 0:02:03]}  Nb8 {[%clk 0:01:51]} 20. Nb4 {[%clk 0:01:56]}  a5 {[%clk 0:01:50]} 21. Nd3 {[%clk 0:01:56]}  Nd7 {[%clk 0:01:46]} 22. f4 {[%clk 0:01:44]}  Bxd3 {[%clk 0:01:40]} 23. Bxd3 {[%clk 0:01:43]}  exf4 {[%clk 0:01:41]} 24. Bxf4 {[%clk 0:01:42]}  Be5 {[%clk 0:01:38]} 25. Be3 {[%clk 0:01:22]}  h3 {[%clk 0:01:36]} 26. Qf2 {[%clk 0:01:20]}  Nc5 {[%clk 0:01:34]} 27. Bc2 {[%clk 0:01:15]}  Bxb2 {[%clk 0:01:24]} 28. Rce1 {[%clk 0:01:08]}  Be5 {[%clk 0:01:22]} 29. Bd4 {[%clk 0:01:01]}  f6 {[%clk 0:01:12]} 30. Bg6+ {[%clk 0:00:59]}  Ke7 {[%clk 0:01:09]} 31. g5 {[%clk 0:00:43]}  Raf8 {[%clk 0:01:06]} 32. Bxe5 {[%clk 0:00:31]}  fxe5 {[%clk 0:01:02]} 33. Qc2 {[%clk 0:00:24]}  Qd7 {[%clk 0:00:56]} 34. Bf5 {[%clk 0:00:23]}  Qa4 {[%clk 0:00:52]} 35. Qb2 {[%clk 0:00:16]}  Qxc4 {[%clk 0:00:45]} 36. Rxe5+ {[%clk 0:00:16]}  Kf7 {[%clk 0:00:19]} 37. Be6+ {[%clk 0:00:04]}  Kg6 {[%clk 0:00:17]} 38. Qb1+ {[%clk 0:00:04]}  Qd3 {[%clk 0:00:04]} 39. Qxd3+ {[%clk 0:00:04]}  Nxd3 {[%clk 0:00:05]} 40. Bf5+ {[%clk 0:00:05]}  Kh5 {[%clk 0:00:05]} 41. Re3 {[%clk 0:00:04]}  Ne5 {[%clk 0:00:04]} 42. Rxh3+ {[%clk 0:00:03]}  Kxg5 {[%clk 0:00:05]} 43. Rg3+ {[%clk 0:00:04]}  Kh6 {[%clk 0:00:04]} 44. Rh3+ {[%clk 0:00:03]}  Kg5 {[%clk 0:00:05]} 45. Rg3+ {[%clk 0:00:03]}  Kf6 {[%clk 0:00:05]} 46. Be6+ {[%clk 0:00:03]}  Ke7 {[%clk 0:00:06]} 47. Rxg7+ {[%clk 0:00:04]}  Ke8 {[%clk 0:00:03]} 48. Rxf8+ {[%clk 0:00:04]}  Rxf8 {[%clk 0:00:02]} 49. Rb7 {[%clk 0:00:05]}  Rf4 {[%clk 0:00:02]} 50. Rxb6 {[%clk 0:00:05]}  Ke7 {[%clk 0:00:02]} 51. Rb7+ {[%clk 0:00:05]}  Kf6 {[%clk 0:00:03]} 52. Rb6 {[%clk 0:00:06]}  Nc4 {[%clk 0:00:03]} 53. Rc6 {[%clk 0:00:06]}  Ne3 {[%clk 0:00:03]} 54. h4 {[%clk 0:00:05]}  Ke5 {[%clk 0:00:03]} 55. Rc8 {[%clk 0:00:04]}  Rxh4 {[%clk 0:00:03]} 56. Rg8 {[%clk 0:00:04]}  Nxd5 {[%clk 0:00:03]} 57. Bxd5 {[%clk 0:00:04]}  Kxd5 {[%clk 0:00:04]} 58. Rg5+ {[%clk 0:00:04]}  Ke4 {[%clk 0:00:04]} 59. Rxa5 {[%clk 0:00:05]}  d5 {[%clk 0:00:04]} 60. Kf2 {[%clk 0:00:05]}  Rh2+ {[%clk 0:00:04]} 61. Ke1 {[%clk 0:00:05]}  Ke3 {[%clk 0:00:04]} 62. Ra3+ {[%clk 0:00:05]}  Ke4 {[%clk 0:00:05]} 63. Rb3 {[%clk 0:00:05]}  Rxa2 {[%clk 0:00:04]} 64. Kd1 {[%clk 0:00:05]}  d4 {[%clk 0:00:05]} 65. Rh3 {[%clk 0:00:05]}  Rf2 {[%clk 0:00:04]} 66. Ke1 {[%clk 0:00:05]}  Rc2 {[%clk 0:00:04]} 67. Kd1 {[%clk 0:00:06]}  Ra2 {[%clk 0:00:05]} 68. Rg3 {[%clk 0:00:06]}  Kd5 {[%clk 0:00:05]} 69. Rh3 {[%clk 0:00:06]}  Kc4 {[%clk 0:00:05]} 70. Rg3 {[%clk 0:00:06]}  Ra1+ {[%clk 0:00:06]} 71. Kd2 {[%clk 0:00:07]}  Ra8 {[%clk 0:00:07]} 72. Kd1 {[%clk 0:00:06]}  Rf8 {[%clk 0:00:05]} 73. Rh3 {[%clk 0:00:07]}  Rf2 {[%clk 0:00:05]} 74. Rg3 {[%clk 0:00:07]}  Rf4 {[%clk 0:00:04]} 75. Rh3 {[%clk 0:00:07]}  Rg4 {[%clk 0:00:03]} 76. Rf3 {[%clk 0:00:07]}  Kd5 {[%clk 0:00:03]} 77. Ra3 {[%clk 0:00:07]}  Ke4 {[%clk 0:00:04]} 78. Rb3 {[%clk 0:00:08]}  Rf4 {[%clk 0:00:04]} 79. Ra3 {[%clk 0:00:08]}  Rf2 {[%clk 0:00:04]} 80. Ke1 {[%clk 0:00:08]}  Rc2 {[%clk 0:00:04]} 81. Kd1 {[%clk 0:00:08]}  Rb2 {[%clk 0:00:03]} 82. Rh3 {[%clk 0:00:08]}  Rb6 {[%clk 0:00:04]} 83. Rh4+ {[%clk 0:00:08]}  Kd3 {[%clk 0:00:03]} 84. Rh3+ {[%clk 0:00:08]}  Kc4 {[%clk 0:00:04]} 85. Rg3 {[%clk 0:00:08]}  Rb2 {[%clk 0:00:04]} 86. Rh3 {[%clk 0:00:09]}  Rf2 {[%clk 0:00:04]} 87. Rg3 {[%clk 0:00:09]}  Rh2 {[%clk 0:00:04]} 88. Rf3 {[%clk 0:00:09]}  Rh4 {[%clk 0:00:05]} 89. Rg3 {[%clk 0:00:09]}  Rf4 {[%clk 0:00:04]} 90. Rh3 {[%clk 0:00:09]}  Re4 {[%clk 0:00:05]} 91. Rg3 {[%clk 0:00:10]}  Re5 {[%clk 0:00:05]} 92. Rh3 {[%clk 0:00:10]}  Kb4 {[%clk 0:00:06]} 93. Rg3 {[%clk 0:00:09]}  Rc5 {[%clk 0:00:06]} 94. Rh3 {[%clk 0:00:09]}  Rc3 {[%clk 0:00:06]} 95. Rh4 {[%clk 0:00:08]}  Kc4 {[%clk 0:00:07]} 96. Rg4 {[%clk 0:00:08]}  Ra3 {[%clk 0:00:07]} 97. Rh4 {[%clk 0:00:07]}  Ra1+ {[%clk 0:00:07]} 98. Kd2 {[%clk 0:00:07]}  Ra2+ {[%clk 0:00:08]} 99. Kd1 {[%clk 0:00:08]}  Kc3 {[%clk 0:00:08]} 100. Rh8 {[%clk 0:00:07]}  Ra1+ {[%clk 0:00:09]} 101. Ke2 {[%clk 0:00:07]}  d3+ {[%clk 0:00:09]} 102. Ke3 {[%clk 0:00:08]}  Re1+ {[%clk 0:00:10]} 103. Kf2 {[%clk 0:00:08]}  d2 {[%clk 0:00:11]} 104. Rc8+ {[%clk 0:00:08]}  Kb4 {[%clk 0:00:12]} 105. Rb8+ {[%clk 0:00:08]}  Ka5 {[%clk 0:00:12]} 106. Ra8+ {[%clk 0:00:09]}  Kb6 {[%clk 0:00:13]} 107. Rb8+ {[%clk 0:00:09]}  Kc7 {[%clk 0:00:13]} 108. Rb2 {[%clk 0:00:09]}  d1=Q {[%clk 0:00:13]} 0-1


[Site "https://www.chess.com"]

[Event "Titled Tuesday Blitz April 11 Late 2023"]
[White "Averjanov, Alexey"]
[Black "Anton Guijarro, David"]
[WhiteFideId "14109867"]
[BlackFideId "2285525"]
[WhiteElo "2399"]
[BlackElo "2618"]
[Result "0-1"]
[Round "11"]
[TimeControl "180+2"]
[Date "2023.04.11"]
[WhiteClock "0:00:26"]
[BlackClock "0:00:24"]

1. d4 {[%clk 0:03:00]}  f5 {[%clk 0:02:59]} 2. c4 {[%clk 0:03:00]}  Nf6 {[%clk 0:02:59]} 3. Nf3 {[%clk 0:03:01]}  g6 {[%clk 0:02:59]} 4. g3 {[%clk 0:03:02]}  Bg7 {[%clk 0:02:59]} 5. Bg2 {[%clk 0:03:02]}  O-O {[%clk 0:03:00]} 6. O-O {[%clk 0:03:03]}  d6 {[%clk 0:03:00]} 7. b3 {[%clk 0:03:04]}  Ne4 {[%clk 0:02:51]} 8. Bb2 {[%clk 0:03:03]}  Nc6 {[%clk 0:02:50]} 9. Nbd2 {[%clk 0:03:03]}  e5 {[%clk 0:02:48]} 10. dxe5 {[%clk 0:02:59]}  Nxd2 {[%clk 0:02:48]} 11. Qxd2 {[%clk 0:02:59]}  dxe5 {[%clk 0:02:48]} 12. Qxd8 {[%clk 0:02:58]}  Rxd8 {[%clk 0:02:48]} 13. Rad1 {[%clk 0:02:56]}  e4 {[%clk 0:02:39]} 14. Rxd8+ {[%clk 0:02:55]}  Nxd8 {[%clk 0:02:40]} 15. Rd1 {[%clk 0:02:53]}  Be6 {[%clk 0:02:35]} 16. Bxg7 {[%clk 0:02:46]}  Kxg7 {[%clk 0:02:35]} 17. Nd4 {[%clk 0:02:39]}  Kf6 {[%clk 0:02:27]} 18. f3 {[%clk 0:02:29]}  exf3 {[%clk 0:02:25]} 19. exf3 {[%clk 0:02:30]}  c6 {[%clk 0:02:20]} 20. f4 {[%clk 0:02:24]}  Nf7 {[%clk 0:01:57]} 21. Kf2 {[%clk 0:02:21]}  a5 {[%clk 0:01:52]} 22. Nxe6 {[%clk 0:02:15]}  Kxe6 {[%clk 0:01:52]} 23. c5 {[%clk 0:02:15]}  Ke7 {[%clk 0:01:41]} 24. Bf1 {[%clk 0:02:09]}  Rd8 {[%clk 0:01:41]} 25. Rxd8 {[%clk 0:02:07]}  Nxd8 {[%clk 0:01:42]} 26. Bc4 {[%clk 0:02:06]}  Ne6 {[%clk 0:01:41]} 27. Ke3 {[%clk 0:01:45]}  Nxc5 {[%clk 0:01:41]} 28. Kd4 {[%clk 0:01:45]}  Kd6 {[%clk 0:01:28]} 29. Bg8 {[%clk 0:01:42]}  Ne6+ {[%clk 0:01:29]} 30. Bxe6 {[%clk 0:01:34]}  Kxe6 {[%clk 0:01:27]} 31. Kc5 {[%clk 0:01:35]}  Kd7 {[%clk 0:01:17]} 32. Kb6 {[%clk 0:01:35]}  Kc8 {[%clk 0:01:10]} 33. Kxa5 {[%clk 0:01:35]}  Kc7 {[%clk 0:01:09]} 34. Kb4 {[%clk 0:01:27]}  Kd6 {[%clk 0:00:33]} 35. a4 {[%clk 0:01:10]}  Kd5 {[%clk 0:00:31]} 36. Ka5 {[%clk 0:01:07]}  Kc5 {[%clk 0:00:28]} 37. b4+ {[%clk 0:01:03]}  Kc4 {[%clk 0:00:29]} 38. Kb6 {[%clk 0:00:25]}  Kxb4 {[%clk 0:00:28]} 39. Kxb7 {[%clk 0:00:26]}  c5 {[%clk 0:00:28]} 40. Kb6 {[%clk 0:00:26]}  c4 {[%clk 0:00:27]} 41. a5 {[%clk 0:00:27]}  c3 {[%clk 0:00:27]} 42. a6 {[%clk 0:00:28]}  c2 {[%clk 0:00:27]} 43. a7 {[%clk 0:00:28]}  c1=Q {[%clk 0:00:27]} 44. a8=Q {[%clk 0:00:29]}  Qc5+ {[%clk 0:00:26]} 45. Kb7 {[%clk 0:00:25]}  Qd5+ {[%clk 0:00:25]} 46. Ka7 {[%clk 0:00:25]}  Qxa8+ {[%clk 0:00:25]} 47. Kxa8 {[%clk 0:00:26]}  Kc5 {[%clk 0:00:24]} 48. Kb7 {[%clk 0:00:26]}  Kd5 {[%clk 0:00:23]} 49. Kc7 {[%clk 0:00:26]}  Ke4 {[%clk 0:00:23]} 50. Kd6 {[%clk 0:00:26]}  Kf3 {[%clk 0:00:23]} 51. Ke5 {[%clk 0:00:25]}  Kg2 {[%clk 0:00:22]} 52. Kf6 {[%clk 0:00:24]}  Kxh2 {[%clk 0:00:22]} 53. Kg7 {[%clk 0:00:24]}  Kxg3 {[%clk 0:00:22]} 54. Kxh7 {[%clk 0:00:25]}  Kxf4 {[%clk 0:00:23]} 55. Kxg6 {[%clk 0:00:26]}  Kg4 {[%clk 0:00:24]} 0-1


[Site "https://www.chess.com"]

[Event "Titled Tuesday Blitz April 11 Late 2023"]
[White "Hambleton, Aman"]
[Black "Eljanov, Pavel"]
[WhiteFideId "2606577"]
[BlackFideId "14102951"]
[WhiteElo "2511"]
[BlackElo "2598"]
[Result "1-0"]
[Round "11"]
[TimeControl "180+2"]
[Date "2023.04.11"]
[WhiteClock "0:00:03"]
[BlackClock "0:00:04"]

1. d4 {[%clk 0:03:00]}  Nf6 {[%clk 0:02:59]} 2. Bf4 {[%clk 0:02:59]}  c5 {[%clk 0:02:57]} 3. e3 {[%clk 0:02:59]}  Nd5 {[%clk 0:02:57]} 4. Bxb8 {[%clk 0:02:05]}  Rxb8 {[%clk 0:02:56]} 5. c3 {[%clk 0:02:06]}  e6 {[%clk 0:02:45]} 6. Nf3 {[%clk 0:02:02]}  cxd4 {[%clk 0:02:30]} 7. exd4 {[%clk 0:02:01]}  b5 {[%clk 0:02:30]} 8. Nbd2 {[%clk 0:01:53]}  Be7 {[%clk 0:02:24]} 9. a4 {[%clk 0:01:52]}  b4 {[%clk 0:02:21]} 10. c4 {[%clk 0:01:52]}  Nf6 {[%clk 0:02:20]} 11. Bd3 {[%clk 0:01:49]}  O-O {[%clk 0:02:18]} 12. O-O {[%clk 0:01:50]}  Bb7 {[%clk 0:02:17]} 13. Re1 {[%clk 0:01:48]}  a5 {[%clk 0:02:05]} 14. b3 {[%clk 0:01:42]}  Qc7 {[%clk 0:02:04]} 15. Qe2 {[%clk 0:01:36]}  Rfe8 {[%clk 0:01:46]} 16. Rac1 {[%clk 0:01:17]}  Rbc8 {[%clk 0:01:35]} 17. Rcd1 {[%clk 0:00:34]}  h6 {[%clk 0:01:23]} 18. Qe5 {[%clk 0:00:22]}  Bd6 {[%clk 0:01:17]} 19. Qe2 {[%clk 0:00:19]}  Bf8 {[%clk 0:01:12]} 20. Qe5 {[%clk 0:00:18]}  d6 {[%clk 0:01:10]} 21. Qe2 {[%clk 0:00:18]}  g6 {[%clk 0:01:09]} 22. Qe3 {[%clk 0:00:15]}  Bg7 {[%clk 0:01:09]} 23. h3 {[%clk 0:00:13]}  Rcd8 {[%clk 0:01:02]} 24. Bb1 {[%clk 0:00:12]}  e5 {[%clk 0:00:53]} 25. Ne4 {[%clk 0:00:04]}  Bxe4 {[%clk 0:00:37]} 26. Bxe4 {[%clk 0:00:05]}  exd4 {[%clk 0:00:38]} 27. Qd3 {[%clk 0:00:02]}  d5 {[%clk 0:00:28]} 28. Bxd5 {[%clk 0:00:02]}  Rxe1+ {[%clk 0:00:26]} 29. Nxe1 {[%clk 0:00:02]}  Nxd5 {[%clk 0:00:25]} 30. cxd5 {[%clk 0:00:03]}  Rxd5 {[%clk 0:00:25]} 31. Qe2 {[%clk 0:00:03]}  Re5 {[%clk 0:00:19]} 32. Qd2 {[%clk 0:00:02]}  Qc3 {[%clk 0:00:16]} 33. Nf3 {[%clk 0:00:03]}  Re8 {[%clk 0:00:12]} 34. Qd3 {[%clk 0:00:03]}  Rc8 {[%clk 0:00:11]} 35. Kf1 {[%clk 0:00:03]}  h5 {[%clk 0:00:10]} 36. g3 {[%clk 0:00:01]}  Bf6 {[%clk 0:00:09]} 37. Ke2 {[%clk 0:00:02]}  Kg7 {[%clk 0:00:09]} 38. Rd2 {[%clk 0:00:02]}  Re8+ {[%clk 0:00:09]} 39. Kf1 {[%clk 0:00:03]}  Kf8 {[%clk 0:00:07]} 40. Rd1 {[%clk 0:00:03]}  Rc8 {[%clk 0:00:06]} 41. Ke2 {[%clk 0:00:03]}  Rc6 {[%clk 0:00:06]} 42. Rd2 {[%clk 0:00:03]}  Rc7 {[%clk 0:00:06]} 43. Rd1 {[%clk 0:00:03]}  Rc8 {[%clk 0:00:05]} 44. Rd2 {[%clk 0:00:03]}  Qxd3+ {[%clk 0:00:05]} 45. Rxd3 {[%clk 0:00:03]}  Rc2+ {[%clk 0:00:05]} 46. Rd2 {[%clk 0:00:04]}  Rc3 {[%clk 0:00:05]} 47. Rd3 {[%clk 0:00:04]}  Ke7 {[%clk 0:00:05]} 48. Nd2 {[%clk 0:00:02]}  Rc5 {[%clk 0:00:03]} 49. Nc4 {[%clk 0:00:02]}  Ke6 {[%clk 0:00:04]} 50. Rd1 {[%clk 0:00:02]}  Kd5 {[%clk 0:00:04]} 51. Kd3 {[%clk 0:00:03]}  Rc7 {[%clk 0:00:04]} 52. Re1 {[%clk 0:00:03]}  Rc5 {[%clk 0:00:04]} 53. Re2 {[%clk 0:00:03]}  Kc6 {[%clk 0:00:04]} 54. Re4 {[%clk 0:00:03]}  Kd7 {[%clk 0:00:04]} 55. g4 {[%clk 0:00:03]}  hxg4 {[%clk 0:00:04]} 56. hxg4 {[%clk 0:00:04]}  g5 {[%clk 0:00:04]} 57. f3 {[%clk 0:00:03]}  Rd5 {[%clk 0:00:04]} 58. Nb6+ {[%clk 0:00:03]} 1-0


[Site "https://www.chess.com"]

[Event "Titled Tuesday Blitz April 11 Late 2023"]
[White "Hansen, Eric"]
[Black "Hasangatin, Ramil"]
[WhiteFideId "2606771"]
[BlackFideId "4122160"]
[WhiteElo "2561"]
[BlackElo "2275"]
[Result "0-1"]
[Round "11"]
[TimeControl "180+2"]
[Date "2023.04.11"]
[WhiteClock "0:00:03"]
[BlackClock "0:00:10"]

1. d4 {[%clk 0:03:00]}  d6 {[%clk 0:02:59]} 2. c4 {[%clk 0:03:01]}  e5 {[%clk 0:02:59]} 3. Nf3 {[%clk 0:03:01]}  e4 {[%clk 0:03:00]} 4. Nfd2 {[%clk 0:03:02]}  f5 {[%clk 0:03:00]} 5. Nc3 {[%clk 0:03:02]}  Nf6 {[%clk 0:03:00]} 6. e3 {[%clk 0:03:02]}  c6 {[%clk 0:03:00]} 7. Be2 {[%clk 0:03:02]}  d5 {[%clk 0:03:00]} 8. h3 {[%clk 0:02:46]}  Be6 {[%clk 0:02:59]} 9. g4 {[%clk 0:02:46]}  Qd7 {[%clk 0:02:57]} 10. gxf5 {[%clk 0:02:46]}  Bxf5 {[%clk 0:02:57]} 11. Qb3 {[%clk 0:02:44]}  Be7 {[%clk 0:02:54]} 12. f3 {[%clk 0:02:36]}  exf3 {[%clk 0:02:50]} 13. Nxf3 {[%clk 0:02:37]}  Bd6 {[%clk 0:02:14]} 14. Ne5 {[%clk 0:02:34]}  Bxe5 {[%clk 0:02:14]} 15. dxe5 {[%clk 0:02:35]}  Ne4 {[%clk 0:02:14]} 16. cxd5 {[%clk 0:02:35]}  Nxc3 {[%clk 0:02:07]} 17. Qxc3 {[%clk 0:02:21]}  Qxd5 {[%clk 0:01:44]} 18. Rg1 {[%clk 0:02:21]}  Be6 {[%clk 0:01:24]} 19. b3 {[%clk 0:02:13]}  O-O {[%clk 0:01:19]} 20. Ba3 {[%clk 0:02:10]}  Re8 {[%clk 0:01:01]} 21. Rd1 {[%clk 0:01:59]}  Qe4 {[%clk 0:00:59]} 22. Rd4 {[%clk 0:01:42]}  Qxe5 {[%clk 0:00:54]} 23. Bd6 {[%clk 0:01:36]}  Qf6 {[%clk 0:00:48]} 24. Rf1 {[%clk 0:01:05]}  Qh6 {[%clk 0:00:31]} 25. h4 {[%clk 0:00:47]}  Nd7 {[%clk 0:00:30]} 26. Rff4 {[%clk 0:00:27]}  Bd5 {[%clk 0:00:29]} 27. Ba3 {[%clk 0:00:24]}  Nf6 {[%clk 0:00:25]} 28. Bb2 {[%clk 0:00:24]}  Ne4 {[%clk 0:00:24]} 29. Qa5 {[%clk 0:00:12]}  Ng3 {[%clk 0:00:22]} 30. Bd3 {[%clk 0:00:05]}  Rxe3+ {[%clk 0:00:21]} 31. Kd2 {[%clk 0:00:05]}  Rae8 {[%clk 0:00:18]} 32. Kc2 {[%clk 0:00:03]}  Ne2 {[%clk 0:00:10]} 0-1


[Site "https://www.chess.com"]